bitfinex/quotes_SOLUSD_20241226
["timestamp","ask_amount","ask_price","bid_price","bid_amount"]
[1735224568309,20.0,188.97,188.86,24.31234989]
[1735224568721,20.0,188.97,188.87,0.12549]
[1735224569317,20.0,188.97,188.85,24.31234989]
[1735224569531,20.0,188.93,188.82,24.31234989]
[1735224569851,20.0,188.91,188.8,24.31234989]
[1735224570007,20.0,188.91,188.81,24.43783989]
[1735224570206,20.0,188.92,188.83,24.31234989]
[1735224570408,20.0,188.92,188.84,24.31234989]
[1735224570627,20.0,188.92,188.83,24.31234989]
[1735224571758,20.0,188.92,188.84,24.31234989]
[1735224572124,6.0805,188.95,188.85,24.31234989]
[1735224572444,6.0805,188.95,188.86,24.43783989]
[1735224572830,6.0805,188.95,188.79,13.2418]
[1735224573040,20.0,188.92,188.81,24.31234989]
[1735224573426,20.0,188.92,188.83,24.31234989]
[1735224574315,20.0,188.92,188.84,0.12549]
[1735224574517,6.0805,188.95,188.84,0.12549]
[1735224574518,6.0805,188.95,188.86,0.12549]
[1735224575452,6.0805,188.95,188.84,24.31234989]
[1735224575753,6.0805,188.95,188.83,24.31234989]
[1735224575920,6.0805,188.95,188.81,24.31234989]
[1735224576120,20.0,188.92,188.82,24.31234989]
[1735224576341,20.0,188.92,188.83,0.12549]
[1735224577045,20.0,188.92,188.81,44.31234989]
[1735224577249,20.0,188.92,188.82,24.43783989]
[1735224577423,20.0,188.92,188.82,24.31234989]
[1735224577631,20.0,188.9,188.79,24.31234989]
[1735224577949,6.4934,188.86,188.76,24.31234989]
[1735224578324,1.5592,188.85,188.74,24.31234989]
[1735224578525,1.5592,188.85,188.73,13.2459]
[1735224578526,20.0,188.83,188.73,24.31234989]
[1735224578836,20.0,188.83,188.74,24.31234989]
[1735224579040,20.0,188.83,188.75,24.31234989]
[1735224579348,1.5592,188.85,188.77,24.31234989]
[1735224579526,1.5592,188.85,188.82,24.31234989]
[1735224580037,1.5592,188.85,188.81,24.31234989]
[1735224580239,1.5592,188.85,188.79,24.31234989]
[1735224580445,1.5592,188.85,188.8,24.31234989]
[1735224580642,1.5592,188.85,188.81,24.31234989]
[1735224581352,1.5592,188.85,188.8,24.31234989]
[1735224581549,1.5592,188.85,188.81,24.31234989]
[1735224581850,1.5592,188.85,188.82,0.12549]
[1735224582052,1.5592,188.85,188.82,24.43783989]
[1735224583060,1.5592,188.85,188.81,24.31234989]
[1735224583240,1.5592,188.85,188.78,24.31234989]
[1735224583448,1.5592,188.85,188.77,24.31234989]
[1735224583748,21.5592,188.85,188.74,24.31234989]
[1735224583965,21.5592,188.85,188.73,24.31234989]
[1735224584124,21.5592,188.85,188.74,24.31234989]
[1735224584772,21.5592,188.85,188.75,24.31234989]
[1735224585052,21.5592,188.85,188.74,24.31234989]
[1735224585660,21.5592,188.85,188.71,24.31234989]
[1735224585661,6.4934,188.82,188.71,24.31234989]
[1735224586150,6.4934,188.82,188.72,24.31234989]
[1735224586858,6.4934,188.82,188.73,24.31234989]
[1735224587035,6.4934,188.82,188.71,24.31234989]
[1735224589072,6.4934,188.82,188.7,24.31234989]
[1735224589234,6.4934,188.82,188.67,24.31234989]
[1735224589235,20.0,188.78,188.67,24.31234989]
[1735224589882,20.0,188.78,188.68,24.43783989]
[1735224590061,20.0,188.78,188.69,24.31234989]
[1735224590357,1.5592,188.77,188.66,24.31234989]
[1735224590530,1.5592,188.77,188.67,24.31234989]
[1735224590731,1.5592,188.77,188.68,24.31234989]
[1735224591857,1.5592,188.77,188.7,24.31234989]
[1735224593332,1.5592,188.77,188.69,24.31234989]
[1735224593536,1.5592,188.77,188.66,13.2509]
[1735224593537,1.5592,188.77,188.68,24.31234989]
[1735224593865,1.5592,188.77,188.67,24.31234989]
[1735224594170,1.5592,188.77,188.68,24.43783989]
[1735224594976,1.5592,188.77,188.69,24.31234989]
[1735224595354,21.5592,188.77,188.68,24.31234989]
[1735224595754,21.5592,188.77,188.65,24.31234989]
[1735224595755,20.0,188.75,188.65,24.31234989]
[1735224595951,20.0,188.71,188.63,24.31234989]
[1735224596157,20.0,188.71,188.61,24.31234989]
[1735224596551,20.0,188.71,188.62,24.31234989]
[1735224596751,20.0,188.71,188.63,24.31234989]
[1735224598051,20.0,188.71,188.62,24.31234989]
[1735224598375,20.0,188.69,188.59,24.31234989]
[1735224598759,20.0,188.69,188.56,14.05336915]
[1735224598760,20.0,188.69,188.6,24.31234989]
[1735224598962,20.0,188.69,188.59,24.31234989]
[1735224600186,20.0,188.69,188.6,15.21049663]
[1735224600377,20.0,188.69,188.59,15.21049663]
[1735224601482,20.0,188.64,188.55,15.21049663]
[1735224601781,20.0,188.64,188.54,15.21049663]
[1735224601980,1.6241,188.63,188.53,15.21049663]
[1735224602188,1.6241,188.63,188.52,24.35627101]
[1735224602363,20.0,188.62,188.52,24.35627101]
[1735224602546,20.0,188.62,188.55,24.35627101]
[1735224602752,1.6241,188.63,188.56,24.35627101]
[1735224602966,1.6241,188.63,188.55,0.12549]
[1735224603174,21.6241,188.63,188.53,24.35627101]
[1735224603385,20.0,188.61,188.52,24.35627101]
[1735224603590,20.0,188.61,188.51,24.35627101]
[1735224604857,20.0,188.61,188.5,24.35627101]
[1735224605379,20.0,188.61,188.47,24.35627101]
[1735224605380,20.0,188.56,188.47,24.35627101]
[1735224605589,1.6241,188.52,188.4,0.79551082]
[1735224605760,1.6241,188.52,188.42,24.35627101]
[1735224606182,20.0,188.51,188.41,24.35627101]
[1735224607168,20.0,188.51,188.42,24.35627101]
[1735224607368,1.6241,188.52,188.42,24.35627101]
[1735224607592,1.6241,188.52,188.43,24.48176101]
[1735224607757,1.6241,188.52,188.46,24.35627101]
[1735224608099,1.6241,188.52,188.47,24.35627101]
[1735224608272,1.6241,188.52,188.46,24.35627101]
[1735224608691,1.6241,188.52,188.47,0.12549]
[1735224609000,1.6241,188.52,188.44,24.35627101]
[1735224609171,1.6241,188.52,188.42,24.35627101]
[1735224609368,1.6241,188.52,188.41,24.35627101]
[1735224609672,1.6241,188.52,188.39,13.2701]
[1735224609673,21.6241,188.52,188.42,24.35627101]
[1735224610195,20.0,188.5,188.41,24.35627101]
[1735224610381,26.1144,188.5,188.41,24.35627101]
[1735224611187,26.1144,188.5,188.4,24.35627101]
[1735224611394,26.1144,188.5,188.41,24.35627101]
[1735224611587,20.0,188.48,188.4,24.35627101]
[1735224611786,26.1144,188.5,188.38,24.35627101]
[1735224611787,21.5747,188.47,188.38,24.35627101]
[1735224612168,21.5747,188.47,188.36,24.35627101]
[1735224612474,20.0,188.45,188.35,24.35627101]
[1735224613398,21.5747,188.47,188.38,24.35627101]
[1735224613576,1.5747,188.47,188.41,24.35627101]
[1735224613755,1.5747,188.47,188.4,24.35627101]
[1735224613963,1.5747,188.47,188.39,24.35627101]
[1735224614496,21.5747,188.47,188.37,24.35627101]
[1735224614682,51.5747,188.47,188.31,0.79602767]
[1735224614887,20.0,188.42,188.31,24.35627101]
[1735224615192,20.0,188.4,188.31,24.35627101]
[1735224616378,20.0,188.4,188.3,24.35627101]
[1735224616578,20.0,188.38,188.29,24.35627101]
[1735224616821,20.0,188.38,188.28,24.35627101]
[1735224617184,20.0,188.38,188.29,24.35627101]
[1735224617615,20.0,188.38,188.3,48.13315501]
[1735224618303,21.5747,188.39,188.3,48.13315501]
[1735224619517,21.5747,188.39,188.31,24.35627101]
[1735224619820,6.1144,188.36,188.25,0.79623083]
[1735224620023,20.0,188.32,188.21,0.79638541]
[1735224620225,20.0,188.32,188.21,24.35627101]
[1735224620522,20.0,188.32,188.22,24.35627101]
[1735224620682,31.5747,188.35,188.22,24.35627101]
[1735224620683,20.0,188.3,188.22,24.35627101]
[1735224621412,20.0,188.28,188.2,24.35627101]
[1735224621633,20.0,188.28,188.21,24.35627101]
[1735224621923,1.5747,188.29,188.23,23.776884]
[1735224622291,1.5747,188.29,188.26,23.776884]
[1735224622621,1.5747,188.29,188.24,24.35627101]
[1735224622823,1.5747,188.29,188.25,23.776884]
[1735224622996,1.5747,188.29,188.26,23.776884]
[1735224623486,1.5747,188.29,188.28,24.35627101]
[1735224623698,1.5747,188.29,188.28,23.776884]
[1735224624038,1.509,188.35,188.29,23.776884]
[1735224624236,1.509,188.35,188.31,23.776884]
[1735224625134,1.509,188.35,188.3,23.776884]
[1735224626137,1.509,188.35,188.32,24.35627101]
[1735224626304,7.8343,188.41,188.35,23.776884]
[1735224626500,7.8343,188.41,188.37,23.776884]
[1735224626714,1.509,188.41,188.37,23.776884]
[1735224626922,1.509,188.41,188.38,23.776884]
[1735224627123,1.509,188.41,188.38,48.13315501]
[1735224627458,1.509,188.41,188.36,24.35627101]
[1735224627738,1.509,188.41,188.39,23.776884]
[1735224628034,1.509,188.41,188.34,24.35627101]
[1735224628434,1.509,188.41,188.33,24.35627101]
[1735224628947,1.509,188.41,188.33,23.776884]
[1735224629235,1.509,188.41,188.33,48.13315501]
[1735224629434,20.0,188.4,188.32,24.35627101]
[1735224629636,20.0,188.4,188.32,23.776884]
[1735224629949,1.509,188.41,188.34,0.12549]
[1735224630109,1.509,188.41,188.35,23.776884]
[1735224630311,1.509,188.41,188.34,24.35627101]
[1735224630312,1.509,188.41,188.37,23.776884]
[1735224630501,1.509,188.41,188.37,48.13315501]
[1735224630705,1.509,188.41,188.37,23.776884]
[1735224631005,1.509,188.41,188.35,24.35627101]
[1735224631271,1.509,188.41,188.33,24.35627101]
[1735224631423,1.509,188.41,188.35,23.776884]
[1735224631947,21.509,188.41,188.3,24.35627101]
[1735224632458,20.0,188.39,188.3,24.35627101]
[1735224632664,20.0,188.39,188.29,24.35627101]
[1735224633166,21.509,188.41,188.32,0.12549]
[1735224633363,1.509,188.41,188.34,23.776884]
[1735224634139,1.509,188.41,188.37,23.776884]
[1735224634541,7.9632,188.46,188.4,0.12549]
[1735224634724,7.9632,188.46,188.39,48.13315501]
[1735224634930,7.9632,188.46,188.34,13.2738]
[1735224635152,7.9632,188.46,188.34,44.35627101]
[1735224635447,7.9632,188.46,188.4,23.776884]
[1735224635950,1.6379,188.46,188.41,23.776884]
[1735224636132,1.6379,188.46,188.42,23.776884]
[1735224636352,1.6379,188.46,188.42,48.13315501]
[1735224636759,1.6379,188.46,188.42,23.776884]
[1735224637145,1.6379,188.46,188.37,24.35627101]
[1735224637477,1.6379,188.46,188.36,24.35627101]
[1735224637670,21.6379,188.46,188.37,23.902374]
[1735224637834,1.6379,188.46,188.37,23.902374]
[1735224638257,1.6379,188.46,188.39,0.12549]
[1735224638539,1.6379,188.46,188.39,23.902374]
[1735224639294,1.6379,188.46,188.41,0.12549]
[1735224639586,1.6379,188.46,188.42,23.776884]
[1735224640156,1.6379,188.46,188.41,23.902374]
[1735224640556,6.1167,188.51,188.45,23.902374]
[1735224640557,1.6379,188.5,188.45,23.902374]
[1735224641069,1.6379,188.5,188.43,24.35627101]
[1735224641581,1.6379,188.5,188.45,0.12549]
[1735224641756,1.6379,188.5,188.47,23.902374]
[1735224641953,1.6379,188.55,188.51,0.12549]
[1735224642466,1.6379,188.55,188.48,24.35627101]
[1735224642657,1.6379,188.55,188.51,23.902374]
[1735224643252,1.6379,188.55,188.48,23.902374]
[1735224643477,1.6379,188.55,188.48,24.35627101]
[1735224643662,1.6379,188.55,188.47,24.35627101]
[1735224643866,1.6379,188.55,188.46,44.35627101]
[1735224644280,1.6379,188.55,188.49,23.776884]
[1735224644582,1.6379,188.55,188.47,23.776884]
[1735224644770,21.6379,188.55,188.47,23.776884]
[1735224645159,1.6379,188.55,188.48,23.776884]
[1735224645357,1.6379,188.55,188.49,0.12549]
[1735224645563,1.6379,188.55,188.47,24.35627101]
[1735224645885,1.6379,188.55,188.48,24.35627101]
[1735224646185,1.6379,188.55,188.49,23.902374]
[1735224646588,1.6379,188.55,188.43,24.35627101]
[1735224646589,20.0,188.53,188.43,24.35627101]
[1735224646764,20.0,188.53,188.41,6.5967]
[1735224646765,20.0,188.53,188.41,24.35627101]
[1735224647167,20.0,188.53,188.43,23.902374]
[1735224647486,50.0,188.53,188.41,24.35627101]
[1735224647682,20.0,188.49,188.42,23.776884]
[1735224648189,20.0,188.49,188.4,23.902374]
[1735224648393,20.0,188.49,188.4,48.25864501]
[1735224648557,20.0,188.49,188.42,23.776884]
[1735224648991,20.0,188.49,188.37,0.79595645]
[1735224648992,1.5583,188.48,188.39,24.35627101]
[1735224649197,1.5583,188.48,188.37,24.35627101]
[1735224649490,20.0,188.45,188.37,24.35627101]
[1735224649691,20.0,188.45,188.38,23.776884]
[1735224650048,1.5583,188.48,188.43,0.12549]
[1735224650195,1.5583,188.48,188.42,48.13315501]
[1735224650496,1.5583,188.48,188.42,23.776884]
[1735224650696,20.0,188.46,188.37,24.35627101]
[1735224650867,21.5583,188.48,188.38,24.35627101]
[1735224651198,21.5583,188.48,188.38,23.902374]
[1735224651494,21.5583,188.48,188.38,0.12549]
[1735224651791,21.5583,188.48,188.31,10.91557088]
[1735224651792,20.0,188.46,188.31,10.91557088]
[1735224651978,1.6349,188.41,188.31,24.35627101]
[1735224652176,21.6349,188.41,188.26,19.9039]
[1735224652378,20.0,188.36,188.25,24.35627101]
[1735224652772,20.0,188.35,188.24,24.35627101]
[1735224653100,20.0,188.35,188.27,0.12549]
[1735224653269,20.0,188.37,188.26,24.35627101]
[1735224653597,20.0,188.37,188.3,48.13315501]
[1735224653811,21.6349,188.41,188.33,23.776884]
[1735224653991,1.6349,188.41,188.35,23.776884]
[1735224654375,1.6349,188.41,188.36,23.776884]
[1735224654696,1.6349,188.41,188.36,48.13315501]
[1735224654897,1.6349,188.41,188.36,23.776884]
[1735224655085,1.6349,188.41,188.33,24.35627101]
[1735224655492,1.6349,188.41,188.3,13.2766]
[1735224655701,1.6349,188.41,188.32,24.35627101]
[1735224656010,1.6349,188.41,188.3,24.35627101]
[1735224656209,20.0,188.4,188.29,24.35627101]
[1735224656709,20.0,188.38,188.29,24.35627101]
[1735224657108,1.6349,188.36,188.22,13.2818]
[1735224657279,20.0,188.33,188.22,24.35627101]
[1735224657473,20.0,188.31,188.22,24.35627101]
[1735224657804,31.6349,188.36,188.28,23.776884]
[1735224658002,20.0,188.34,188.3,23.776884]
[1735224658173,1.6349,188.36,188.28,24.35627101]
[1735224658380,1.6349,188.36,188.27,24.35627101]
[1735224658607,1.6349,188.36,188.29,23.776884]
[1735224658775,1.6349,188.36,188.27,24.35627101]
[1735224658981,1.6349,188.36,188.28,24.35627101]
[1735224659312,1.6349,188.36,188.3,23.776884]
[1735224659883,1.6349,188.36,188.27,24.35627101]
[1735224660085,1.6349,188.36,188.28,24.35627101]
[1735224660284,1.6349,188.36,188.29,23.776884]
[1735224660580,1.6349,188.36,188.29,48.13315501]
[1735224660803,1.6349,188.36,188.29,23.776884]
[1735224661111,20.0,188.34,188.29,23.776884]
[1735224661406,20.0,188.34,188.26,48.25864501]
[1735224661609,20.0,188.34,188.26,23.902374]
[1735224662311,50.0,188.34,188.22,24.35627101]
[1735224662521,30.0,188.32,188.22,24.35627101]
[1735224662678,20.0,188.32,188.21,24.35627101]
[1735224663008,20.0,188.32,188.23,23.776884]
[1735224663310,20.0,188.32,188.24,23.776884]
[1735224663490,20.0,188.31,188.21,24.35627101]
[1735224664020,20.0,188.29,188.2,24.35627101]
[1735224665288,20.0,188.29,188.21,23.776884]
[1735224665490,1.6349,188.3,188.23,23.776884]
[1735224665687,1.6349,188.3,188.23,48.13315501]
[1735224665909,1.6349,188.3,188.21,24.35627101]
[1735224666081,1.6349,188.3,188.23,24.35627101]
[1735224666278,1.6349,188.3,188.22,24.35627101]
[1735224666612,21.6349,188.3,188.21,24.35627101]
[1735224667018,1.6349,188.3,188.26,48.13315501]
[1735224667198,1.6349,188.3,188.29,23.776884]
[1735224667720,1.6051,188.36,188.29,48.13315501]
[1735224668023,1.6051,188.36,188.29,23.776884]
[1735224668185,30.0,188.34,188.21,24.35627101]
[1735224668380,30.0,188.34,188.22,23.776884]
[1735224668623,31.6051,188.36,188.25,23.776884]
[1735224668831,31.6051,188.36,188.25,48.13315501]
[1735224669135,20.0,188.33,188.25,48.13315501]
[1735224669524,1.6051,188.36,188.27,23.776884]
[1735224670205,1.6051,188.36,188.26,23.776884]
[1735224670500,1.6051,188.36,188.26,48.13315501]
[1735224670828,20.0,188.34,188.26,23.776884]
[1735224671007,20.0,188.34,188.21,13.2829]
[1735224671008,20.0,188.32,188.22,24.35627101]
[1735224671209,20.0,188.32,188.24,24.35627101]
[1735224671412,20.0,188.32,188.25,23.776884]
[1735224671736,20.0,188.34,188.25,23.776884]
[1735224672124,20.0,188.33,188.25,23.776884]
[1735224672835,20.0,188.34,188.25,24.35627101]
[1735224673136,1.6051,188.36,188.28,24.35627101]
[1735224673343,1.6051,188.36,188.29,23.776884]
[1735224673502,1.6051,188.36,188.27,24.48176101]
[1735224673702,1.6051,188.36,188.25,23.776884]
[1735224673703,31.6051,188.36,188.25,24.35627101]
[1735224673911,31.6051,188.36,188.24,24.35627101]
[1735224674134,1.6051,188.36,188.25,48.13315501]
[1735224674308,1.6051,188.36,188.27,23.776884]
[1735224674512,1.6051,188.36,188.28,0.12549]
[1735224674818,1.6051,188.36,188.22,0.79660707]
[1735224674819,1.6051,188.36,188.25,24.35627101]
[1735224675003,20.0,188.34,188.24,24.35627101]
[1735224675203,20.0,188.32,188.22,24.35627101]
[1735224675403,20.0,188.32,188.23,23.902374]
[1735224675600,20.0,188.32,188.23,23.776884]
[1735224675803,20.0,188.3,188.2,24.35627101]
[1735224676118,20.0,188.32,188.21,48.25864501]
[1735224676321,20.0,188.32,188.23,23.776884]
[1735224676526,20.0,188.31,188.23,23.776884]
[1735224676842,20.0,188.32,188.24,23.776884]
[1735224677045,20.0,188.32,188.2,24.35627101]
[1735224677220,20.0,188.3,188.21,24.35627101]
[1735224677834,20.0,188.32,188.22,23.776884]
[1735224678143,20.0,188.32,188.22,48.13315501]
[1735224678358,20.0,188.32,188.23,23.776884]
[1735224678652,1.6051,188.31,188.2,24.35627101]
[1735224678816,30.0,188.28,188.16,24.35627101]
[1735224679018,20.0,188.27,188.16,24.35627101]
[1735224679216,20.0,188.27,188.18,23.776884]
[1735224679933,20.0,188.27,188.21,23.776884]
[1735224680229,6.0052,188.3,188.21,23.776884]
[1735224680538,6.0052,188.3,188.19,24.35627101]
[1735224680744,6.0052,188.3,188.21,23.776884]
[1735224681742,6.0052,188.3,188.19,24.35627101]
[1735224681948,30.0,188.29,188.17,24.35627101]
[1735224682243,20.0,188.27,188.2,23.776884]
[1735224682747,20.0,188.27,188.18,24.35627101]
[1735224683043,20.0,188.27,188.17,48.25864501]
[1735224683531,20.0,188.27,188.19,23.776884]
[1735224683951,6.0052,188.3,188.19,48.13315501]
[1735224684251,6.0052,188.3,188.22,24.48176101]
[1735224684617,6.0052,188.3,188.22,23.902374]
[1735224684823,6.0052,188.3,188.2,24.35627101]
[1735224685065,6.0052,188.3,188.19,24.35627101]
[1735224685221,6.0052,188.3,188.2,24.35627101]
[1735224685421,6.0052,188.3,188.22,23.776884]
[1735224685854,6.0052,188.3,188.18,24.35627101]
[1735224686034,20.0,188.27,188.18,24.35627101]
[1735224686349,1.5558,188.25,188.15,24.35627101]
[1735224686743,1.5558,188.25,188.14,24.35627101]
[1735224687040,1.5558,188.25,188.16,23.776884]
[1735224687355,20.0,188.23,188.14,24.35627101]
[1735224687856,20.0,188.23,188.12,24.35627101]
[1735224688057,20.0,188.23,188.13,48.25864501]
[1735224688225,51.5558,188.25,188.13,48.25864501]
[1735224689164,51.5558,188.25,188.13,23.902374]
[1735224689454,51.5558,188.25,188.04,4.76027088]
[1735224689455,20.0,188.19,188.08,24.35627101]
[1735224689958,20.0,188.19,188.1,24.35627101]
[1735224690135,1.5558,188.21,188.14,23.776884]
[1735224690336,21.5558,188.21,188.14,23.776884]
[1735224691270,51.5558,188.21,188.06,0.79707886]
[1735224691476,30.0,188.19,188.07,24.35627101]
[1735224691649,20.0,188.16,188.07,24.35627101]
[1735224691959,1.5558,188.15,188.08,24.35627101]
[1735224692664,1.5558,188.15,188.1,48.13315501]
[1735224693361,1.5558,188.15,188.12,23.776884]
[1735224693760,1.5558,188.15,188.11,23.776884]
[1735224694265,1.5558,188.15,188.07,24.35627101]
[1735224696143,1.5558,188.15,188.09,23.776884]
[1735224696942,1.5558,188.15,188.1,48.13315501]
[1735224697147,1.5558,188.15,188.13,23.776884]
[1735224697472,1.5558,188.23,188.15,23.776884]
[1735224698043,1.5558,188.23,188.16,23.776884]
[1735224698373,1.5558,188.23,188.15,23.776884]
[1735224698969,1.5558,188.23,188.16,23.902374]
[1735224699465,1.5558,188.23,188.18,24.35627101]
[1735224699967,1.5558,188.23,188.19,23.902374]
[1735224700450,1.5558,188.28,188.21,48.25864501]
[1735224700648,1.5558,188.28,188.23,23.776884]
[1735224700973,1.5558,188.28,188.24,48.25864501]
[1735224701179,1.5558,188.28,188.24,23.902374]
[1735224701467,1.5558,188.28,188.24,0.12549]
[1735224701671,1.5558,188.28,188.23,23.776884]
[1735224701865,1.5558,188.28,188.15,24.35627101]
[1735224702177,1.5558,188.28,188.17,24.35627101]
[1735224702343,1.5558,188.28,188.18,23.776884]
[1735224702543,1.5558,188.28,188.17,23.902374]
[1735224702766,20.0,188.27,188.17,48.25864501]
[1735224703147,20.0,188.26,188.17,0.12549]
[1735224703466,20.0,188.26,188.16,24.35627101]
[1735224703467,20.0,188.26,188.18,23.776884]
[1735224703769,20.0,188.24,188.14,24.35627101]
[1735224703970,26.2624,188.24,188.13,24.35627101]
[1735224705082,26.2624,188.24,188.15,23.902374]
[1735224705777,26.2624,188.24,188.15,24.35627101]
[1735224705987,26.2624,188.24,188.14,24.35627101]
[1735224706146,26.2624,188.24,188.16,0.12549]
[1735224706363,6.2624,188.24,188.18,48.13315501]
[1735224706567,20.0,188.26,188.18,48.13315501]
[1735224707203,1.5558,188.28,188.18,48.13315501]
[1735224708097,1.5558,188.28,188.2,23.776884]
[1735224708305,1.5558,188.28,188.22,23.776884]
[1735224708503,1.5558,188.28,188.24,23.776884]
[1735224708874,1.5558,188.28,188.23,23.776884]
[1735224709372,1.5558,188.28,188.22,23.902374]
[1735224710004,1.5558,188.28,188.2,24.35627101]
[1735224710571,1.5558,188.28,188.21,23.776884]
[1735224711208,1.5558,188.28,188.2,48.25864501]
[1735224711990,21.5558,188.28,188.18,24.35627101]
[1735224712171,20.0,188.26,188.17,24.35627101]
[1735224712611,20.0,188.26,188.16,24.35627101]
[1735224712776,20.0,188.26,188.17,23.902374]
[1735224712977,20.0,188.26,188.18,23.776884]
[1735224713180,1.5558,188.28,188.2,23.776884]
[1735224713675,1.5558,188.28,188.18,24.35627101]
[1735224714094,1.5558,188.28,188.19,23.776884]
[1735224714300,1.5558,188.28,188.21,23.776884]
[1735224714891,20.0,188.27,188.15,24.35627101]
[1735224715397,20.0,188.21,188.13,24.35627101]
[1735224715598,6.2377,188.24,188.14,24.35627101]
[1735224715799,6.2377,188.24,188.17,0.12549]
[1735224719017,1.5558,188.28,188.21,23.902374]
[1735224719182,1.5558,188.28,188.23,48.13315501]
[1735224719809,1.5558,188.28,188.24,24.48176101]
[1735224719980,1.5558,188.28,188.25,23.776884]
[1735224720382,1.6624,188.34,188.26,23.776884]
[1735224720608,1.6624,188.34,188.27,23.902374]
[1735224720914,1.6624,188.34,188.29,23.776884]
[1735224721094,1.6624,188.34,188.28,23.776884]
[1735224721289,1.6624,188.34,188.28,48.13315501]
[1735224721499,1.6624,188.34,188.3,23.776884]
[1735224721718,1.6624,188.39,188.34,23.776884]
[1735224722037,1.6624,188.39,188.38,48.13315501]
[1735224722316,7.9468,188.45,188.36,24.35627101]
[1735224722528,7.9468,188.45,188.33,24.35627101]
[1735224722728,30.0,188.44,188.3,24.35627101]
[1735224723099,30.0,188.44,188.32,23.902374]
[1735224723303,20.0,188.41,188.32,23.902374]
[1735224724016,1.6624,188.4,188.27,24.35627101]
[1735224724323,6.2844,188.35,188.23,24.35627101]
[1735224724827,6.2844,188.35,188.21,24.35627101]
[1735224724828,20.0,188.31,188.21,24.35627101]
[1735224725005,20.0,188.31,188.22,24.35627101]
[1735224725207,20.0,188.31,188.23,24.35627101]
[1735224725531,20.0,188.32,188.25,23.776884]
[1735224726101,20.0,188.32,188.24,0.12549]
[1735224726304,20.0,188.3,188.2,24.35627101]
[1735224727098,20.0,188.3,188.21,23.776884]
[1735224727301,20.0,188.3,188.2,24.35627101]
[1735224727920,20.0,188.3,188.2,23.902374]
[1735224728297,20.0,188.31,188.22,23.776884]
[1735224729028,20.0,188.3,188.22,23.776884]
[1735224729601,20.0,188.31,188.24,23.776884]
[1735224729809,20.0,188.31,188.23,23.776884]
[1735224730013,20.0,188.29,188.19,24.35627101]
[1735224730222,20.0,188.29,188.18,24.35627101]
[1735224730612,20.0,188.29,188.19,23.902374]
[1735224730918,1.5386,188.28,188.13,0.79682057]
[1735224731229,1.5386,188.28,188.15,24.35627101]
[1735224731413,20.0,188.24,188.13,25.15309158]
[1735224731614,20.0,188.24,188.11,24.35627101]
[1735224732123,20.0,188.22,188.11,24.35627101]
[1735224732499,1.5386,188.21,188.11,24.35627101]
[1735224732695,20.0,188.2,188.09,24.35627101]
[1735224732928,20.0,188.19,188.09,24.35627101]
[1735224733108,20.0,188.19,188.1,23.902374]
[1735224734108,20.0,188.19,188.12,0.12549]
[1735224734525,1.5386,188.21,188.12,0.12549]
[1735224734929,21.5386,188.21,188.12,0.12549]
[1735224735334,21.5386,188.21,188.09,24.35627101]
[1735224735503,20.0,188.19,188.08,24.35627101]
[1735224735827,20.0,188.17,188.07,24.35627101]
[1735224736026,26.2552,188.17,188.07,24.35627101]
[1735224736405,26.2552,188.17,188.06,24.35627101]
[1735224737131,20.0,188.15,188.06,24.35627101]
[1735224737436,20.0,188.14,188.07,24.35627101]
[1735224737820,20.0,188.14,188.08,23.776884]
[1735224739631,20.0,188.14,188.06,24.35627101]
[1735224739942,20.0,188.14,188.09,23.902374]
[1735224740233,6.2552,188.17,188.09,23.902374]
[1735224740616,6.2552,188.17,188.05,24.35627101]